bitfinex/quotes_SOLUSD_20240716
["timestamp","ask_amount","ask_price","bid_price","bid_amount"]
[1721167890745,1.25320338,159.53,159.42,22.9429]
[1721167890949,6.2696,159.5,159.42,22.9429]
[1721167891146,6.2691,159.52,159.43,1.2541043]
[1721167891353,7.52180338,159.53,159.48,6.27]
[1721167891946,1.25320338,159.53,159.51,6.2688]
[1721167892147,7.52080338,159.55,159.42,22.9429]
[1721167892370,1.25320338,159.54,159.49,6.2699]
[1721167892570,6.2687,159.53,159.47,6.2704]
[1721167892873,1.25320338,159.52,159.49,6.2698]
[1721167893463,1.25320338,159.54,159.43,1.25386498]
[1721167893673,6.0285,159.56,159.43,1.25386498]
[1721167893674,7.52050338,159.56,159.51,6.2691]
[1721167893975,6.2676,159.55,159.5,6.2695]
[1721167894168,1.25320338,159.54,159.5,6.2695]
[1721167894371,7.52030338,159.57,159.52,6.2687]
[1721167894573,1.25320338,159.57,159.5,6.2692]
[1721167894771,1.25320338,159.57,159.48,6.27]
[1721167894964,6.2687,159.53,159.48,6.27]
[1721167895168,40.3077,159.51,159.3,10.0]
[1721167895363,40.3077,159.51,159.28,10.03942913]
[1721167895364,6.2724,159.43,159.28,10.03942913]
[1721167895572,1.25320338,159.5,159.35,10.0]
[1721167895573,1.25320338,159.46,159.35,10.0]
[1721167895782,1.25320338,159.48,159.36,10.0]
[1721167896076,21.5577,159.56,159.38,10.0]
[1721167896259,33.9,159.53,159.37,23.3310984]
[1721167896579,1.25320338,159.52,159.37,23.3310984]
[1721167896758,6.2698,159.5,159.37,23.3310984]
[1721167896956,1.25320338,159.49,159.38,1.25417683]
[1721167897188,1.25320338,159.48,159.37,21.8796]
[1721167897361,1.25320338,159.52,159.39,1.25423891]
[1721167897667,6.2696,159.5,159.37,21.8796]
[1721167897985,1.25320338,159.49,159.37,21.8796]
[1721167898159,1.25320338,159.48,159.38,0.34]
[1721167898366,7.52360338,159.48,159.38,0.34]
[1721167898553,7.52400338,159.47,159.39,1.25423866]
[1721167898754,1.25320338,159.46,159.4,1.25437256]
[1721167899177,1.25320338,159.46,159.37,21.8796]
[1721167899556,1.25320338,159.46,159.38,1.25437314]
[1721167899876,1.25320338,159.47,159.38,1.25437314]
[1721167900267,1.25320338,159.47,159.39,1.25437263]
[1721167900461,1.25320338,159.47,159.4,1.2544044]
[1721167900661,7.52310338,159.5,159.4,1.2544044]
[1721167900862,6.27,159.49,159.4,1.2544044]
[1721167901067,1.25320338,159.48,159.4,1.2544044]
[1721167901271,1.25320338,159.52,159.4,1.2544044]
[1721167901476,1.25320338,159.55,159.41,11.25407785]
[1721167901679,1.25320338,159.54,159.42,0.17]
[1721167902065,1.25320338,159.54,159.42,1.42394087]
[1721167902259,6.2701,159.49,159.42,0.17]
[1721167902458,1.25320338,159.48,159.42,0.17]
[1721167902766,1.25320338,159.49,159.42,1.42427983]
[1721167902961,1.25320338,159.5,159.43,0.17]
[1721167903557,7.52280338,159.5,159.43,0.17]
[1721167904172,1.25320338,159.5,159.43,0.17]
[1721167904884,7.52270338,159.5,159.43,1.42419375]
[1721167905058,1.25320338,159.5,159.44,0.17]
[1721167905762,7.52280338,159.5,159.44,0.17]
[1721167906150,6.2699,159.49,159.44,0.17]
[1721167907293,20.00320338,159.48,159.37,21.8796]
[1721167907457,33.9,159.47,159.37,6.4672]
[1721167907666,1.25320338,159.46,159.37,6.4672]
[1721167908493,1.25320338,159.46,159.34,1.25439721]
[1721167908659,6.2727,159.43,159.34,1.25439721]
[1721167908993,6.2716,159.45,159.33,10.0]
[1721167909279,1.25320338,159.44,159.32,21.603]
[1721167909484,6.2731,159.41,159.32,21.603]
[1721167909655,1.25320338,159.44,159.33,1.25480007]
[1721167909852,6.2727,159.42,159.34,1.25471489]
[1721167910075,6.2723,159.43,159.34,1.25471489]
[1721167910261,1.25320338,159.42,159.34,1.25471489]
[1721167910457,1.25320338,159.42,159.32,21.603]
[1721167910663,7.52590338,159.42,159.32,21.603]
[1721167910862,7.52590338,159.42,159.33,0.34]
[1721167911273,1.25320338,159.41,159.33,0.34]
[1721167911786,1.25320338,159.45,159.33,10.34]
[1721167912086,35.15320338,159.44,159.33,0.34]
[1721167912255,1.25320338,159.43,159.32,0.34]
[1721167912457,1.25320338,159.42,159.31,0.828697]
[1721167912681,1.25320338,159.42,159.31,2.08349541]
[1721167912885,1.25320338,159.42,159.31,2.08343746]
[1721167913485,1.25320338,159.41,159.32,1.2547902]
[1721167913663,1.25320338,159.41,159.33,1.2547902]
[1721167913858,1.25320338,159.41,159.34,0.34]
[1721167914065,1.25320338,159.41,159.35,1.25479071]
[1721167914362,1.25320338,159.41,159.36,0.34]
[1721167914566,1.25320338,159.42,159.36,0.34]
[1721167915380,33.9,159.48,159.36,0.34]
[1721167915683,6.2712,159.46,159.36,0.34]
[1721167915894,1.25320338,159.45,159.33,6.3364]
[1721167916190,1.25320338,159.45,159.34,1.2547921]
[1721167916490,7.52480338,159.45,159.34,1.2547921]
[1721167917215,7.52480338,159.45,159.35,0.34]
[1721167917394,7.52480338,159.45,159.36,1.25467366]
[1721167917579,7.52480338,159.45,159.37,0.34]
[1721167917897,1.25320338,159.45,159.37,1.59464104]
[1721167918061,1.25320338,159.45,159.37,0.34]
[1721167918569,1.25320338,159.45,159.38,0.17]
[1721167918869,1.25320338,159.45,159.36,1.59465145]
[1721167919082,1.25320338,159.45,159.36,0.34]
[1721167919993,6.2731,159.41,159.33,6.3364]
[1721167920176,1.25320338,159.45,159.34,1.2549203]
[1721167920378,37.9475,159.5,159.33,6.3364]
[1721167920379,7.52320338,159.49,159.35,11.25467638]
[1721167920687,1.25320338,159.48,159.36,1.25438961]
[1721167920884,7.52380338,159.48,159.33,16.3364]
[1721167921085,7.52410338,159.47,159.36,10.0]
[1721167921285,1.25320338,159.49,159.37,15.7415]
[1721167921485,1.25320338,159.48,159.38,11.25427307]
[1721167921676,1.25320338,159.5,159.39,6.0139]
[1721167921990,7.52190338,159.53,159.4,11.25410065]
[1721167922197,1.25320338,159.53,159.41,11.25406367]
[1721167922375,1.25320338,159.55,159.42,0.34]
[1721167922571,7.52120338,159.54,159.43,1.25386136]
[1721167922789,6.2675,159.56,159.44,0.34]
[1721167923101,1.25320338,159.57,159.46,22.262]
[1721167923270,6.2661,159.59,159.47,1.59351163]
[1721167923478,6.3988,159.65,159.47,0.34]
[1721167923479,20.00320338,159.58,159.47,0.34]
[1721167923681,6.2676,159.55,159.47,0.34]
[1721167923881,1.25320338,159.57,159.47,0.34]
[1721167924399,6.2676,159.55,159.47,0.34]
[1721167924711,6.2676,159.55,159.47,1.59371837]
[1721167924712,1.25320338,159.54,159.47,1.59371837]
[1721167924881,1.25320338,159.54,159.47,0.34]
[1721167925388,6.2672,159.56,159.47,0.34]
[1721167925591,7.52090338,159.55,159.47,0.34]
[1721167925795,20.0,159.59,159.47,0.34]
[1721167925796,6.2672,159.56,159.47,0.34]
[1721167926100,1.25320338,159.55,159.46,6.6609]
[1721167926502,1.25320338,159.54,159.46,6.6609]
[1721167927003,1.25320338,159.54,159.47,1.2538771]
[1721167927183,6.2689,159.52,159.46,6.6609]
[1721167927377,1.25320338,159.51,159.41,22.8839]
[1721167927683,20.00320338,159.51,159.37,6.0679]
[1721167927876,34.4245,159.5,159.37,6.0679]
[1721167928099,21.25320338,159.49,159.37,6.0679]
[1721167928405,1.25320338,159.48,159.37,7.32227074]
[1721167928581,7.52390338,159.48,159.37,6.0679]
[1721167928783,6.2708,159.47,159.37,6.0679]
[1721167928998,1.25320338,159.46,159.37,6.0679]
[1721167929196,6.2708,159.47,159.37,6.0679]
[1721167929500,7.52430338,159.46,159.37,6.0679]
[1721167929801,6.2711,159.46,159.37,6.0679]
[1721167930305,6.2707,159.47,159.37,6.0679]
[1721167930480,1.25320338,159.46,159.37,6.0679]
[1721167930679,1.25320338,159.5,159.37,6.0679]
[1721167931090,6.2707,159.47,159.37,6.0679]
[1721167931285,6.2708,159.47,159.38,0.34]
[1721167931492,1.25320338,159.46,159.38,0.34]
[1721167932225,6.2704,159.48,159.38,0.34]
[1721167932381,1.25320338,159.47,159.38,0.34]
[1721167932918,7.52400338,159.47,159.38,0.34]
[1721167933094,1.25320338,159.46,159.38,0.34]
[1721167934411,22.019,159.44,159.32,1.2543502]
[1721167934583,1.25320338,159.43,159.33,1.25489477]
[1721167934784,22.019,159.44,159.33,1.25489477]
[1721167934785,6.2732,159.41,159.33,1.25489477]
[1721167934984,1.25320338,159.4,159.33,1.25489477]
[1721167935400,1.25320338,159.39,159.34,1.25481637]
[1721167935609,6.2731,159.41,159.31,0.828697]
[1721167935911,1.25320338,159.4,159.31,0.828697]
[1721167936113,55.919,159.44,159.31,2.08358634]
[1721167936114,1.25320338,159.43,159.31,2.08358634]
[1721167936316,1.25320338,159.42,159.31,2.08358634]
[1721167936609,7.52590338,159.42,159.31,0.828697]
[1721167936981,1.25320338,159.41,159.31,10.828697]
[1721167937191,1.25320338,159.43,159.31,10.828697]
[1721167937402,1.25320338,159.43,159.32,0.17]
[1721167937991,1.25320338,159.43,159.32,0.34]
[1721167939008,1.25320338,159.43,159.33,1.25464413]
[1721167939209,1.25320338,159.46,159.34,0.34]
[1721167939411,6.3364,159.51,159.36,6.2207]
[1721167939610,6.3364,159.51,159.38,10.0]
[1721167939611,1.25320338,159.5,159.38,10.0]
[1721167939793,1.25320338,159.5,159.39,1.59414824]
[1721167939985,1.25320338,159.5,159.4,1.25408555]
[1721167940183,1.25320338,159.5,159.41,0.34]
[1721167940406,1.25320338,159.5,159.42,1.25408511]
[1721167940610,1.25320338,159.51,159.43,1.59408513]
[1721167940812,1.25320338,159.55,159.43,1.42408513]
[1721167941025,1.25320338,159.54,159.44,0.17]
[1721167941193,1.25320338,159.57,159.44,0.17]
[1721167941513,1.25320338,159.57,159.45,6.5627]
[1721167941823,7.52010338,159.57,159.46,0.34]
[1721167942196,7.52050338,159.56,159.46,0.34]
[1721167942894,6.2669,159.57,159.47,1.2536221]
[1721167943107,1.25320338,159.56,159.48,0.34]
[1721167943299,1.25320338,159.56,159.48,0.17]
[1721167943921,1.25320338,159.59,159.48,1.42361566]
[1721167944125,7.51920338,159.59,159.49,0.17]
[1721167944325,7.51920338,159.59,159.49,1.4235549]
[1721167944616,7.51920338,159.59,159.5,0.17]
[1721167944822,1.25320338,159.59,159.5,0.17]
[1721167945117,1.25320338,159.59,159.51,1.25352267]
[1721167945416,7.51840338,159.61,159.52,1.59341943]
[1721167945716,1.25320338,159.62,159.53,0.17]
[1721167946092,7.51720338,159.65,159.53,1.42325412]
[1721167946390,1.25320338,159.64,159.55,6.6229]
[1721167946588,1.25320338,159.64,159.56,1.4230707]
[1721167946826,1.25320338,159.64,159.57,0.17]
[1721167947004,1.25320338,159.64,159.57,1.42302034]
[1721167947196,1.25320338,159.67,159.57,1.42302034]
[1721167947405,1.25320338,159.67,159.58,0.17]
[1721167947718,1.25320338,159.67,159.58,1.42277633]
[1721167947919,1.25320338,159.67,159.59,0.17]
[1721167948109,1.25320338,159.67,159.58,0.17]
[1721167948300,7.51620338,159.67,159.58,1.42302043]
[1721167948502,7.51620338,159.67,159.59,0.17]
[1721167948809,1.25320338,159.67,159.59,0.17]
[1721167949504,6.2637,159.65,159.59,0.17]
[1721167949696,1.25320338,159.64,159.59,0.17]
[1721167950131,1.25320338,159.64,159.59,1.42302207]
[1721167950441,33.9,159.68,159.59,1.42302207]
[1721167950442,7.51610338,159.67,159.59,1.42302207]
[1721167950718,1.25320338,159.66,159.59,0.17]
[1721167952121,7.51610338,159.67,159.59,0.17]
[1721167952697,1.25320338,159.67,159.59,1.42276598]
[1721167953010,1.25320338,159.67,159.6,0.17]
[1721167953194,6.2622,159.69,159.6,0.17]
[1721167953399,1.25320338,159.71,159.6,0.17]
[1721167953601,1.25320338,159.7,159.6,0.17]
[1721167954097,6.2607,159.73,159.6,10.17]
[1721167954298,1.25320338,159.72,159.61,0.17]
[1721167954498,7.51430338,159.72,159.61,0.17]
[1721167954735,1.25320338,159.71,159.61,0.17]
[1721167954904,6.2614,159.71,159.61,0.17]
[1721167955110,1.25320338,159.7,159.61,0.17]
[1721167955499,7.51510338,159.7,159.61,0.17]
[1721167955716,6.2621,159.69,159.61,0.17]
[1721167956025,1.25320338,159.68,159.61,0.17]
[1721167956323,6.2618,159.7,159.61,0.17]
[1721167956526,1.25320338,159.71,159.61,1.42263495]
[1721167956722,1.25320338,159.71,159.62,0.17]
[1721167956923,1.25320338,159.71,159.63,1.25243965]
[1721167957109,6.2605,159.73,159.64,0.17]
[1721167957315,1.25320338,159.72,159.65,6.6638]
[1721167957629,7.51330338,159.75,159.66,0.34]
[1721167958125,1.25320338,159.75,159.66,0.34]
[1721167959905,7.51310338,159.75,159.66,0.34]
[1721167960112,1.25320338,159.75,159.66,0.34]
[1721167960328,1.25320338,159.75,159.65,22.151]
[1721167960533,6.262,159.7,159.65,6.6638]
[1721167960724,1.25320338,159.69,159.65,6.6638]
[1721167961436,6.2614,159.71,159.65,6.6638]
[1721167961646,1.25320338,159.7,159.65,6.6638]
[1721167961816,7.51410338,159.73,159.65,6.6638]
[1721167962130,7.51410338,159.73,159.66,1.59241]
[1721167962432,1.25320338,159.73,159.66,1.59241]
[1721167962807,1.25320338,159.73,159.66,0.34]
[1721167963221,1.25320338,159.77,159.66,10.34]
[1721167963421,1.25320338,159.76,159.66,10.34]
[1721167963628,1.25320338,159.77,159.66,10.34]
[1721167963812,1.25320338,159.76,159.67,1.25199393]
[1721167964014,6.2589,159.78,159.68,1.59206905]
[1721167964223,1.25320338,159.77,159.69,16.6142]
[1721167964547,1.25320338,159.77,159.7,0.34]
[1721167964919,1.25320338,159.76,159.7,0.34]
[1721167965651,7.51260338,159.76,159.7,0.34]
[1721167965825,6.2594,159.76,159.7,0.34]
[1721167966037,7.51130338,159.8,159.71,1.25199465]
[1721167966339,7.51170338,159.79,159.72,0.34]
[1721167966546,1.25320338,159.78,159.73,0.17]
[1721167966831,18.82,159.83,159.73,0.17]
[1721167966832,6.2579,159.8,159.73,1.25188231]
[1721167967040,7.51150338,159.79,159.74,0.17]
[1721167967337,18.82,159.83,159.74,0.17]
[1721167967338,6.2579,159.8,159.74,0.17]
[1721167967543,1.25320338,159.79,159.74,0.17]
[1721167967945,1.25320338,159.81,159.73,0.17]
[1721167968236,7.51080338,159.81,159.73,0.17]
[1721167968727,6.2579,159.8,159.73,0.17]
[1721167968927,1.25320338,159.79,159.73,0.17]
[1721167969132,7.51140338,159.79,159.73,0.17]
[1721167969835,1.25320338,159.78,159.73,0.17]
[1721167970736,1.25320338,159.81,159.73,1.42189243]
[1721167970938,7.51090338,159.81,159.74,0.17]
[1721167971824,7.51100338,159.8,159.74,0.17]
[1721167972025,1.25320338,159.79,159.74,0.17]
[1721167973857,1.25320338,159.8,159.74,0.17]
[1721167974047,1.25320338,159.79,159.74,0.17]
[1721167974546,1.25320338,159.83,159.74,0.17]
[1721167974751,1.25320338,159.82,159.74,0.17]
[1721167974957,6.2575,159.81,159.74,0.17]
[1721167975165,1.25320338,159.8,159.74,0.17]
[1721167976238,1.25320338,159.83,159.74,0.17]
[1721167976448,1.25320338,159.83,159.74,1.42163297]
[1721167976632,1.25320338,159.83,159.75,0.17]
[1721167976855,1.25320338,159.86,159.75,1.42148479]
[1721167977152,1.25320338,159.85,159.76,0.17]
[1721167977355,1.25320338,159.85,159.76,1.42144341]
[1721167977568,1.25320338,159.85,159.77,0.17]
[1721167977735,1.25320338,159.85,159.77,1.25134553]
[1721167977935,2.08190038,159.87,159.78,0.34]
[1721167978532,2.08190038,159.87,159.79,1.25134428]
[1721167978865,8.33700038,159.87,159.8,1.59129524]
[1721167979154,8.33700038,159.87,159.81,0.17]
[1721167979360,2.08190038,159.87,159.8,0.17]
[1721167980152,8.33700038,159.87,159.8,0.17]
[1721167980863,54.80190038,159.87,159.77,15.7227]
[1721167981055,6.2565,159.84,159.77,15.7227]
[1721167981355,1.25320338,159.86,159.78,1.25157007]
[1721167981544,1.25320338,159.86,159.77,15.7227]
[1721167981545,1.25320338,159.85,159.77,15.7227]
[1721167982432,1.25320338,159.85,159.78,0.34]
[1721167983053,2.08190038,159.87,159.78,0.34]
[1721167983258,8.33730038,159.87,159.78,0.34]
[1721167983458,6.2555,159.86,159.78,0.34]
[1721167983639,2.08190038,159.87,159.78,0.34]
[1721167983640,7.50910338,159.85,159.78,0.34]
[1721167983852,6.2565,159.84,159.78,0.34]
[1721167984042,1.25320338,159.85,159.78,0.34]
[1721167984243,0.828697,159.87,159.78,0.34]
[1721167984560,6.2573,159.82,159.77,15.7227]
[1721167984741,6.2566,159.84,159.77,15.7227]
[1721167984943,1.25320338,159.83,159.77,15.7227]
[1721167985138,1.25320338,159.82,159.77,15.7227]
[1721167986258,7.51040338,159.82,159.77,15.7227]
[1721167986453,1.25320338,159.81,159.77,15.7227]
[1721167986763,1.25320338,159.84,159.78,1.25168086]
[1721167987299,1.25320338,159.84,159.77,15.7227]
[1721167987442,1.25320338,159.86,159.78,0.17]
[1721167987630,0.828697,159.87,159.78,1.59127338]
[1721167987835,0.828697,159.87,159.79,6.2437]
[1721167988035,0.828697,159.87,159.8,0.34]
[1721167989062,0.828697,159.87,159.8,1.59115041]
[1721167990170,0.828697,159.87,159.81,10.0]
[1721167990376,0.828697,159.87,159.82,1.59083987]
[1721167990555,0.828697,160.03,159.82,1.59083987]
[1721167990556,1.25320338,159.97,159.86,6.2437]
[1721167990739,33.9,160.01,159.87,1.59048492]
[1721167991047,25.0714,159.97,159.87,1.59048492]
[1721167991246,1.25320338,160.0,159.87,1.59048492]
[1721167991247,7.50500338,159.96,159.87,0.34]
[1721167991450,1.25320338,159.95,159.87,0.34]
[1721167991674,6.2524,159.94,159.87,0.34]
[1721167991833,35.15320338,159.97,159.87,0.34]
[1721167992033,41.40440338,159.97,159.87,0.34]
[1721167992237,35.15320338,159.97,159.87,0.34]
[1721167992760,6.2519,159.95,159.87,0.34]
[1721167992968,1.25320338,159.94,159.87,0.34]
[1721167994443,1.25320338,159.95,159.87,0.34]
[1721167994641,33.9,159.97,159.87,0.34]
[1721167994859,1.25320338,159.96,159.87,0.34]
[1721167995040,1.25320338,159.95,159.87,0.34]
[1721167995357,1.25320338,159.96,159.88,1.25053143]
[1721167995563,7.50540338,159.95,159.89,0.34]
[1721167995737,1.25320338,159.96,159.89,0.17]
[1721167995935,1.25320338,159.95,159.89,0.17]
[1721167996955,1.25320338,159.96,159.89,0.17]
[1721167997157,33.9,159.97,159.88,0.17]
[1721167997357,33.9,159.97,159.88,1.420432]
[1721167997586,33.9,159.97,159.89,0.17]
[1721167997740,1.25320338,159.99,159.89,1.42037163]
[1721167997941,1.25320338,159.98,159.89,1.42037163]
[1721167998155,1.25320338,159.98,159.9,0.17]
[1721167998458,1.25320338,159.98,159.9,1.42037451]
[1721167998982,1.25320338,159.98,159.91,0.17]
[1721167999264,7.50400338,159.98,159.91,0.17]
[1721167999561,1.25320338,159.97,159.91,0.17]
[1721168000182,6.2519,159.96,159.91,0.17]
[1721168000341,1.25320338,159.95,159.86,6.2437]
[1721168000953,1.25320338,159.96,159.87,1.25052282]
[1721168001271,7.50380338,159.99,159.87,1.25052282]
[1721168001569,1.25320338,159.98,159.87,1.25052282]
[1721168001771,1.25320338,159.98,159.88,0.34]
[1721168001966,1.25320338,159.98,159.89,1.25032536]
[1721168002294,40.1501,160.0,159.91,23.0495]
[1721168002295,35.15320338,160.0,159.91,23.0495]
[1721168002469,35.15320338,160.0,159.92,1.59019218]
[1721168002649,35.15320338,160.0,159.93,1.25020775]
[1721168002850,35.15320338,160.0,159.94,0.34]
[1721168003170,35.15320338,160.0,159.94,1.59022597]
[1721168003551,33.9,160.0,159.94,1.59022597]
[1721168004052,1.25320338,159.99,159.94,1.59022597]
[1721168004261,1.25320338,159.99,159.94,0.34]
[1721168004448,1.25320338,159.99,159.95,1.25020383]
[1721168004652,1.25320338,159.98,159.95,0.17]
[1721168004849,1.25320338,159.98,159.93,0.34]
[1721168005153,7.50400338,159.98,159.91,23.0495]
[1721168005544,1.25320338,159.98,159.91,23.0495]
[1721168006577,1.25320338,159.98,159.92,0.34]
[1721168007466,1.25320338,159.98,159.87,16.4259]
[1721168007676,40.1518,159.96,159.87,16.4259]
[1721168007978,1.25320338,159.95,159.87,16.4259]
[1721168009477,1.25320338,159.95,159.88,0.17]
[1721168009657,1.25320338,159.95,159.88,0.34]
[1721168010182,33.9,159.96,159.88,1.59068027]
[1721168011093,1.25320338,159.99,159.9,6.4506]
[1721168011257,1.25320338,160.01,159.91,0.34]
[1721168012767,1.25320338,160.01,159.92,1.24902361]
[1721168012968,0.828697,160.03,159.93,16.72396496]
[1721168013256,0.828697,160.03,159.95,6.4506]
[1721168013468,0.828697,160.03,159.96,0.34]
[1721168014056,0.828697,160.03,159.97,1.24982813]
[1721168014257,0.828697,160.03,159.98,0.34]
[1721168016060,0.828697,160.03,159.99,0.17]
[1721168016256,0.828697,160.03,159.99,1.5896828]
[1721168016577,0.828697,160.03,159.99,0.17]
[1721168018181,0.828697,160.03,160.0,16.3906]
[1721168018384,0.828697,160.03,160.01,0.34]
[1721168018572,0.828697,160.03,160.0,16.3906]
[1721168019890,0.828697,160.03,160.01,0.17]
[1721168020391,0.828697,160.03,160.01,1.58707474]
[1721168020888,0.828697,160.03,160.01,0.17]
[1721168021058,0.828697,160.03,159.96,15.3029]
[1721168021257,1.25320338,160.02,159.95,6.4506]
[1721168021459,1.25320338,160.01,159.95,6.4506]
[1721168022373,35.15320338,160.01,159.92,15.3029]
[1721168022581,7.50330338,160.0,159.92,15.3029]
[1721168022879,1.25320338,160.0,159.93,1.25026832]
[1721168023062,1.25320338,160.0,159.94,1.25029632]
[1721168023487,1.25320338,160.0,159.92,15.3029]
[1721168023693,35.15320338,160.01,159.93,1.25018958]
[1721168023987,33.9,160.01,159.92,15.3029]
[1721168024189,2.08190038,160.03,159.92,15.3029]
[1721168024491,0.828697,160.03,159.93,0.34]
[1721168025368,0.828697,160.03,159.94,1.24992822]
[1721168025578,0.828697,160.03,159.95,0.34]
[1721168025775,0.828697,160.03,159.96,1.2498324]
[1721168025974,0.828697,160.03,159.97,0.34]
[1721168026294,0.828697,160.03,159.98,1.24982351]
[1721168026495,0.828697,160.03,159.99,0.34]
[1721168026695,0.828697,160.03,159.99,1.58986306]
[1721168026987,0.828697,160.03,159.99,0.34]
[1721168028468,0.828697,160.03,159.99,6.9993]
[1721168028666,0.828697,160.03,160.0,1.24970474]
[1721168028864,0.828697,160.03,160.01,0.34]
[1721168029061,0.828697,160.03,160.01,1.58970489]
[1721168029359,0.828697,160.03,160.01,0.34]
[1721168030165,0.828697,160.03,160.01,1.58972091]
[1721168030586,0.828697,160.03,160.01,0.34]
[1721168030783,0.828697,160.03,160.0,0.34]
[1721168030985,0.828697,160.03,160.02,0.17]
[1721168031195,0.828697,160.03,160.02,1.58948156]
[1721168031492,0.828697,160.03,160.02,1.41948156]
[1721168031695,0.828697,160.03,160.02,1.58948156]
[1721168032196,0.828697,160.03,160.02,0.34]
[1721168032990,0.828697,160.03,160.02,0.17]
[1721168033201,0.828697,160.03,160.01,0.34]
[1721168033899,7.077497,160.03,159.95,6.6593]
[1721168034078,31.29320338,160.02,159.95,6.6593]
[1721168034278,1.25320338,160.01,159.95,6.6593]
[1721168034988,1.25320338,160.01,159.9,6.6593]
[1721168035198,7.50280338,160.01,159.9,6.6593]
[1721168035397,1.25320338,160.01,159.9,6.6593]
[1721168036194,7.50280338,160.01,159.9,6.6593]
[1721168036401,1.25320338,160.01,159.9,6.6593]
[1721168037595,1.25320338,160.01,159.91,1.25030638]
[1721168038475,1.25320338,160.01,159.92,0.34]
[1721168039387,1.25320338,160.01,159.93,0.17]
[1721168039589,1.25320338,160.01,159.91,0.34]
[1721168040588,1.25320338,160.01,159.92,1.25025771]
[1721168040794,1.25320338,160.0,159.93,1.5901722]
[1721168040985,1.25320338,160.02,159.94,0.17]
[1721168041187,1.25320338,160.01,159.94,1.42017631]
[1721168041508,7.50280338,160.01,159.95,0.17]
[1721168041679,1.25320338,160.01,159.95,1.25017999]
[1721168041880,1.25320338,160.01,159.96,1.59011732]
[1721168042080,1.25320338,160.02,159.97,0.17]
[1721168042383,34.648697,160.03,159.97,1.42011732]
[1721168042589,1.25320338,160.02,159.97,0.17]
[1721168042781,1.25320338,160.01,159.97,0.17]
[1721168047289,1.25320338,160.02,159.97,0.17]
[1721168047481,1.25320338,160.01,159.97,0.17]
[1721168048185,35.90190038,160.03,159.97,0.17]
[1721168048385,35.90190038,160.03,159.97,1.41994727]
[1721168048593,35.90190038,160.03,159.98,0.17]
[1721168048799,34.648697,160.03,159.98,0.17]
[1721168049309,0.828697,160.03,159.98,0.17]
[1721168049601,0.828697,160.03,159.98,1.41984935]
[1721168049814,0.828697,160.03,159.99,0.17]
[1721168050213,1.25320338,160.02,159.99,0.17]
[1721168050391,1.25320338,160.02,159.98,0.17]
[1721168050392,1.25320338,160.01,159.9,6.6593]
[1721168050599,7.50290338,160.01,159.9,6.6593]
[1721168050999,1.25320338,160.01,159.91,1.25025917]
[1721168051308,40.07,160.0,159.9,6.6593]
[1721168051516,1.25320338,159.99,159.9,6.6593]
[1721168051812,1.25320338,159.99,159.91,1.24840678]
[1721168052194,1.25320338,159.98,159.9,6.6593]
[1721168052393,1.25320338,159.98,159.91,0.17]
[1721168052612,1.25320338,159.98,159.91,0.34]
[1721168053312,1.25320338,159.99,159.91,0.34]
[1721168053491,1.25320338,159.98,159.91,0.34]
[1721168054495,30.07,159.98,159.91,0.34]
[1721168055417,1.25320338,159.97,159.89,15.5756]
[1721168055899,1.25320338,159.97,159.89,16.82598168]
[1721168056096,1.25320338,159.97,159.89,15.5756]
[1721168056414,1.25320338,159.97,159.9,1.2490271]
[1721168056612,30.07,159.98,159.91,0.34]
[1721168056803,30.07,160.01,159.92,1.25016693]
[1721168057017,1.25320338,160.0,159.93,1.42017986]
[1721168057206,30.07,160.01,159.94,0.17]
[1721168057396,1.25320338,160.0,159.94,1.42013279]
[1721168057599,1.25320338,160.0,159.95,0.17]
[1721168057819,30.07,160.01,159.95,1.42017554]
[1721168058128,2.08190038,160.03,159.95,1.42017554]
[1721168058316,2.08190038,160.03,159.96,0.17]
[1721168058524,0.828697,160.03,159.96,1.41992558]